fUSD/lending_fUSD_20260416
["ID","MTS","AMOUNT","RATE_DAILY","PERIOD"]
[420605713,1776315034673,-743.50770149,9.933e-05,2]
[420605714,1776315034682,-1512.55075755,9.933e-05,2]
[420605715,1776315034692,-279.9045709,9.933e-05,2]
[420605716,1776315034701,-10272.10520533,9.933e-05,2]
[420605717,1776315034710,-151.0,9.933e-05,2]
[420605718,1776315034719,-1000.0,9.938e-05,2]
[420605719,1776315034729,-500.0,9.939e-05,2]
[420605720,1776315034738,-152.0,9.941e-05,7]
[420605721,1776315034748,-500.0,9.946e-05,2]
[420605722,1776315034757,-500.0,9.946e-05,2]
[420605723,1776315034767,-599.19493516,9.946e-05,2]
[420605724,1776315034777,-500.0,9.978e-05,3]
[420605725,1776315034787,-4656.23253559,9.988e-05,2]
[420605726,1776315034796,-151.0,9.988e-05,2]
[420605727,1776315034806,-500.0,9.994e-05,2]
[420605728,1776315034816,-3300.0,0.0001,3]
[420605729,1776315034825,-201.63233013,0.0001,2]
[420605730,1776315034835,-151.0,0.0001,2]
[420605731,1776315034845,-151.0,0.0001,2]
[420605732,1776315034854,-151.0,0.0001,2]
[420605733,1776315034863,-151.0,0.0001,2]
[420605734,1776315034873,-151.0,0.0001,2]
[420605735,1776315034883,-151.0,0.0001,2]
[420605736,1776315034893,-151.0,0.0001,2]
[420605737,1776315034902,-151.0,0.0001,2]
[420605738,1776315034912,-151.0,0.0001,2]
[420605739,1776315034921,-151.0,0.0001,2]
[420605740,1776315034931,-500.0,0.0001,2]
[420605741,1776315034940,-151.0,0.0001,2]
[420605742,1776315034949,-500.0,0.0001,2]
[420605743,1776315034959,-500.0,0.0001,2]
[420605744,1776315034969,-424.24284645,0.0001,2]
[420605745,1776315034979,-2000.0,0.00010016,2]
[420605746,1776315034988,-151.0,0.00010043,2]
[420605747,1776315034998,-151.0,0.00010098,2]
[420605748,1776315035007,-150.0,0.00010103,2]
[420605749,1776315035017,-500.0,0.00010103,2]
[420605750,1776315035026,-382.74366018,0.00010135,2]
[420605751,1776315035037,-151.0,0.00010153,2]
[420605752,1776315035047,-244.04848303,0.00010175,2]
[420605753,1776315035056,-2500.0,0.00010187,2]
[420605754,1776315035066,-1305.19297468,0.000102,2]
[420605755,1776315035075,-151.0,0.00010208,2]
[420605756,1776315035085,-150.0,0.0001022,2]
[420605757,1776315035094,-150.0,0.0001022,2]
[420605758,1776315035104,-150.0,0.0001022,2]
[420605759,1776315035113,-150.0,0.0001022,2]
[420605760,1776315035122,-150.0,0.0001022,2]
[420605761,1776315035132,-852.26,0.0001022,2]
[420605762,1776315035141,-100000.1,0.00010248,2]
[420605763,1776315035150,-151.0,0.00010263,2]
[420605764,1776315035159,-500.0,0.00010273,2]
[420605765,1776315035168,-500.0,0.00010273,2]
[420605766,1776315035178,-500.0,0.00010273,2]
[420605767,1776315035187,-500.53322406,0.00010273,2]
[420605768,1776315035197,-160.05196007,0.00010273,2]
[420605769,1776315035207,-160.04311138,0.00010273,2]
[420605770,1776315035217,-500.0,0.00010273,2]
[420605771,1776315035227,-502.30027553,0.00010273,2]
[420605772,1776315035236,-500.0,0.00010273,2]
[420605773,1776315035246,-500.43587122,0.00010273,2]
[420605774,1776315035256,-500.0,0.00010273,2]
[420605775,1776315035267,-500.0,0.00010273,2]
[420605776,1776315035276,-150.0,0.00010274,2]
[420605777,1776315035285,-151.0,0.00010287,2]
[420605778,1776315035295,-151.0,0.00010287,2]
[420605779,1776315035305,-73881.06808487,0.00010287,2]
[420605780,1776315035790,-1284.419038,0.0001029,2]
[420605781,1776315035800,-500.0,0.00010298,2]
[420605782,1776315035810,-500.0,0.00010298,2]
[420605783,1776315035820,-500.0,0.00010298,2]
[420605784,1776315035829,-500.0,0.00010298,2]
[420605785,1776315035838,-500.0,0.00010298,2]
[420605786,1776315035848,-500.0,0.00010298,2]
[420605787,1776315035859,-500.0,0.00010298,2]
[420605788,1776315035869,-500.0,0.00010298,2]
[420605789,1776315035879,-500.0,0.00010298,2]
[420605790,1776315035888,-500.0,0.00010298,2]
[420605791,1776315035898,-500.0,0.00010298,2]
[420605792,1776315035908,-500.0,0.00010298,2]
[420605793,1776315035917,-500.0,0.00010298,2]
[420605794,1776315035926,-500.0,0.00010298,2]
[420605795,1776315035936,-500.0,0.00010298,2]
[420605796,1776315035945,-500.0,0.00010298,2]
[420605797,1776315035955,-500.0,0.00010298,2]
[420605798,1776315035964,-500.0,0.00010298,2]
[420605799,1776315035974,-500.0,0.00010298,2]
[420605800,1776315035983,-500.0,0.00010298,2]
[420605801,1776315035992,-500.0,0.00010298,2]
[420605802,1776315036002,-500.0,0.00010298,2]
[420605803,1776315036012,-500.0,0.00010298,2]
[420605804,1776315036021,-500.0,0.00010298,2]
[420605805,1776315036031,-500.0,0.00010298,2]
[420605806,1776315036042,-500.0,0.00010298,2]
[420605807,1776315036052,-500.0,0.00010298,2]
[420605808,1776315036061,-415.59157051,0.00010298,2]
[420605809,1776315036072,-500.0,0.00010298,2]
[420605810,1776315036082,-500.0,0.00010298,2]
[420605811,1776315036091,-500.0,0.00010298,2]
[420605812,1776315036101,-500.0,0.00010298,2]
[420605813,1776315036111,-500.0,0.00010298,2]
[420605814,1776315036120,-500.0,0.00010298,2]
[420605815,1776315036131,-500.0,0.00010298,2]
[420605816,1776315036140,-500.0,0.00010298,2]
[420605817,1776315036149,-500.0,0.00010298,2]
[420605818,1776315036159,-500.0,0.00010298,2]
[420605819,1776315036169,-500.0,0.00010298,2]
[420605820,1776315036178,-500.0,0.00010298,2]
[420605821,1776315036187,-500.0,0.00010298,2]
[420605822,1776315036197,-500.0,0.00010298,2]
[420605823,1776315036206,-500.0,0.00010298,2]
[420605824,1776315036216,-500.0,0.00010298,2]
[420605825,1776315036225,-500.0,0.00010298,2]
[420605826,1776315036235,-500.0,0.00010298,2]
[420605827,1776315036244,-500.0,0.00010298,2]
[420605828,1776315036253,-500.0,0.00010298,2]
[420605829,1776315036263,-500.0,0.00010298,2]
[420605830,1776315036272,-500.0,0.00010298,2]
[420605831,1776315036282,-500.0,0.00010298,2]
[420605832,1776315036292,-500.0,0.00010298,2]
[420605833,1776315036302,-500.0,0.00010298,2]
[420605834,1776315036311,-500.0,0.00010298,2]
[420605835,1776315036320,-500.0,0.00010298,2]
[420605836,1776315036330,-500.0,0.00010298,2]
[420605837,1776315036339,-500.0,0.00010298,2]
[420605838,1776315036349,-241.55915705,0.00010298,2]
[420605839,1776315036358,-500.0,0.00010298,2]
[420605840,1776315036367,-500.0,0.00010298,2]
[420605841,1776315036376,-500.0,0.00010298,2]
[420605842,1776315036385,-500.0,0.00010298,2]
[420605843,1776315036395,-500.0,0.00010298,2]
[420605844,1776315036404,-500.0,0.00010298,2]
[420605845,1776315036414,-500.0,0.00010298,2]
[420605846,1776315036423,-500.0,0.00010298,2]
[420605847,1776315036433,-500.0,0.00010298,2]
[420605848,1776315036442,-464.13153334,0.00010298,2]
[420605849,1776315036451,-621.41948562,0.00010298,2]
[420605850,1776315036461,-621.41948562,0.00010298,2]
[420605851,1776315036470,-621.41948562,0.00010298,2]
[420605852,1776315036479,-621.41948562,0.00010298,2]
[420605853,1776315036489,-621.41948562,0.00010298,2]
[420605854,1776315036498,-155.493,0.00010299,2]
[420605855,1776315036508,-500.0,0.00010299,2]
[420605856,1776315036517,-500.0,0.00010299,2]
[420605857,1776315036526,-500.0,0.00010299,2]
[420605858,1776315036535,-500.0,0.00010299,2]
[420605859,1776315036545,-466.2446423,0.00010299,2]
[420605860,1776315036554,-500.0,0.00010299,2]
[420605861,1776315036564,-500.0,0.00010299,2]
[420605862,1776315036573,-500.0,0.00010299,2]
[420605863,1776315036582,-500.0,0.00010299,2]
[420605864,1776315036592,-512.71041199,0.00010299,2]
[420605865,1776315036601,-500.0,0.00010299,2]
[420605866,1776315036611,-500.0,0.00010299,2]
[420605867,1776315036620,-240.68883193,0.00010299,2]
[420605868,1776315036629,-500.0,0.00010299,2]
[420605869,1776315036639,-328.95889565,0.00010299,2]
[420605870,1776315036648,-152.0,0.000103,5]
[420605871,1776315036657,-250.0,0.000103,2]
[420605872,1776315036667,-423743.1400979,0.000103,2]
[420605873,1776315036681,-37571.05053628,0.000103,2]
[420605874,1776315036693,-55679.44765869,0.000103,2]
[420605875,1776315036704,-343.29292514,0.000103,2]
[420605876,1776315036715,-8851.01212348,0.000103,2]
[420605877,1776315036910,-4061.81751019,0.000103,2]
[420605878,1776315036921,-1870.88949691,0.000103,2]
[420605879,1776315036933,-1015.04698736,0.000103,2]
[420605880,1776315036944,-510.0,0.000103,2]
[420605881,1776315038099,152.0,8.417e-05,7]
[420605883,1776315038310,-152.0,9.133e-05,7]
[420605884,1776315038320,-294.26987052,0.000103,2]
[420605885,1776315038333,-69147.12643601,0.000103,2]
[420605886,1776315038471,-1230.72968212,0.000103,2]
[420605887,1776315038483,-4430.59999998,0.000103,2]
[420605888,1776315038494,-7168.0,0.000103,2]
[420605909,1776315040386,-652.92280695,0.000103,2]
[420605910,1776315040398,-2878.09324054,0.000103,2]
[420605911,1776315040409,-707.2350598,0.000103,2]
[420605912,1776315040420,-1386.70499995,0.000103,2]
[420605913,1776315040490,-3396.05356863,0.000103,2]
[420605914,1776315040860,-356.90157413,0.000103,2]
[420605915,1776315041021,-995.57469,0.000103,2]
[420605916,1776315041032,-542.35868177,0.000103,2]
[420605917,1776315041075,-277.1987,0.000103,2]
[420605940,1776315046552,-1600.0,9.705e-05,2]
[420605941,1776315046562,-39449.2077956,0.000103,2]
[420605942,1776315046578,-931.86771549,0.000103,2]
[420605943,1776315046594,-840.49968722,0.000103,2]
[420605944,1776315046616,-621.41948562,0.00010297,2]
[420605945,1776315046627,-3740.83243438,0.000103,2]
[420605946,1776315046748,-5038.18168835,0.000103,2]
[420605947,1776315047048,-352.94111257,0.000103,2]
[420605948,1776315047421,-494.5,0.000103,2]
[420605949,1776315047451,-20592.60526196,0.000103,2]
[420605950,1776315047463,-106533.328639,0.000103,2]
[420605951,1776315047475,-11824.5,0.000103,2]
[420605953,1776315047592,-41326.6846784,0.000103,2]
[420605955,1776315047624,-2934.4,0.000103,2]
[420605956,1776315047635,-76979.92044294,0.000103,2]
[420605958,1776315067853,8625.01,7.945e-05,2]
[420605959,1776315067878,10000.01,7.945e-05,2]
[420605960,1776315067904,6905.164468,7.945e-05,2]
[420605961,1776315126843,152.0,7.945e-05,3]
[420605962,1776315132494,2942.845532,7.945e-05,2]
[420605963,1776315132520,10000.01,7.945e-05,2]
[420605964,1776315132544,1536.655418,7.945e-05,2]
[420605965,1776315188978,153.0,7.945e-05,3]
[420605966,1776315246796,153.0,7.945e-05,3]
[420605972,1776315311597,159.0,7.945e-05,3]
[420605973,1776315311971,153.0,7.945e-05,3]
[420605974,1776315367965,153.0,7.945e-05,3]
[420605975,1776315425898,153.0,7.945e-05,3]
[420605976,1776315497270,6036.1372066,8e-05,2]
[420605977,1776315551457,153.0,7.945e-05,3]
[420605980,1776315605464,159.0,7.945e-05,3]
[420605981,1776315611602,153.0,7.945e-05,3]
[420605982,1776315632021,394.39676588,7.888e-05,2]
[420605988,1776316089583,2804.73,8.298e-05,2]
[420605990,1776316216984,159.0,7.945e-05,3]
[420605995,1776316232027,-261.0,8.587e-05,2]
[420605996,1776316232038,-1034.9148631,8.587e-05,2]
[420605997,1776316232050,-165.0851369,8.587e-05,2]
[420605998,1776316232060,-250.0,8.588e-05,2]
[420605999,1776316232069,-2578.79541183,8.588e-05,2]
[420606000,1776316232081,-38.08872517,8.588e-05,2]
[420606001,1776316232091,-502.31903775,8.588e-05,2]
[420606002,1776316232102,-323.3292545,8.588e-05,2]
[420606003,1776316232115,-2305.61238994,8.588e-05,2]
[420606004,1776316232124,-118.46656357,8.6e-05,2]
[420606005,1776316232156,-31.53343643,8.6e-05,2]
[420606006,1776316232166,-250.0,8.614e-05,2]
[420606007,1776316232176,-330.31,8.632e-05,2]
[420606008,1776316232185,-160.82462888,8.691e-05,2]
[420606009,1776316232205,-4.62537112,8.691e-05,2]
[420606010,1776316232214,-259.37684526,8.872e-05,2]
[420606011,1776316232227,-1965.28730358,8.872e-05,2]
[420606012,1776316232238,-267.37735194,8.872e-05,2]
[420606013,1776316232250,-1632.70955247,8.872e-05,2]
[420606014,1776316232310,-257.8752,8.872e-05,2]
[420606015,1776316232322,-2800.96661148,8.872e-05,2]
[420606016,1776316232334,-1635.36487997,8.872e-05,2]
[420606017,1776316232346,-1181.4322553,8.872e-05,2]
[420606018,1776316232355,-578.20924308,9.033e-05,2]
[420606019,1776316232365,-500.0,9.033e-05,2]
[420606020,1776316232375,-209.40437684,9.033e-05,2]
[420606021,1776316232386,-328.23334478,9.033e-05,2]
[420606022,1776316232396,-150.0,9.034e-05,2]
[420606023,1776316232407,-1728.64493367,9.035e-05,2]
[420606024,1776316232420,-1309.68764366,9.035e-05,2]
[420606025,1776316232486,-254.14013485,9.035e-05,2]
[420606026,1776316232497,-369.98931999,9.035e-05,2]
[420606027,1776316232509,-326.03172292,9.035e-05,2]
[420606028,1776316238854,-981.27320347,9.035e-05,2]
[420606029,1776316238866,-1222.12293849,9.035e-05,2]
[420606077,1776316245915,-3360.27796842,9.035e-05,2]
[420606078,1776316245924,-151.0,9.035e-05,2]
[420606079,1776316245934,-151.0,9.035e-05,2]
[420606080,1776316245943,-174.61919141,9.035e-05,2]
[420606081,1776316245953,-696.55992228,9.035e-05,2]
[420606082,1776316245962,-265.69489089,9.035e-05,2]
[420606083,1776316245972,-49951.01679672,9.04e-05,2]
[420606084,1776316245981,-150.99,9.04e-05,2]
[420606085,1776316245991,-9874.03,9.04e-05,2]
[420606086,1776316246000,-1062.87,9.065e-05,2]
[420606087,1776316246009,-500.0,9.088e-05,2]
[420606088,1776316246018,-353.43021102,9.09e-05,2]
[420606089,1776316246028,-151.0,9.09e-05,2]
[420606090,1776316246038,-500.0,9.143e-05,2]
[420606091,1776316246047,-151.0,9.145e-05,2]
[420606092,1776316246056,-500.0,9.198e-05,2]
[420606093,1776316246065,-151.0,9.2e-05,2]
[420606094,1776316246074,-500.0,9.245e-05,2]
[420606095,1776316246084,-500.0,9.253e-05,2]
[420606096,1776316246093,-151.0,9.255e-05,2]
[420606097,1776316246102,-500.0,9.308e-05,2]
[420606098,1776316246112,-151.0,9.31e-05,2]
[420606099,1776316246121,-151.0,9.365e-05,2]
[420606100,1776316246131,-268.2965335,9.42e-05,2]
[420606101,1776316246140,-1680.0,9.446e-05,2]
[420606102,1776316246151,-193.0,9.447e-05,2]
[420606103,1776316246161,-250.0,9.447e-05,2]
[420606104,1776316246171,-150.0,9.452e-05,2]
[420606105,1776316246180,-419.50564989,9.5e-05,2]
[420606106,1776316246190,-209.40437686,9.581e-05,2]
[420606107,1776316246199,-500.0,9.581e-05,2]
[420606108,1776316246209,-156.587,9.583e-05,2]
[420606109,1776316246218,-194.24097532,9.583e-05,2]
[420606110,1776316246227,-9923.3697,9.623e-05,2]
[420606111,1776316246236,-1000.0,9.623e-05,2]
[420606112,1776316246246,-2500.0,9.623e-05,2]
[420606113,1776316246255,-150.0,9.673e-05,2]
[420606114,1776316246264,-150.63361388,9.673e-05,2]
[420606115,1776316246274,-1428.38747117,9.717e-05,2]
[420606117,1776316246283,-729.26839923,9.717e-05,2]
[420606119,1776316246293,-200.0,9.717e-05,2]
[420606121,1776316246302,-500.0,9.717e-05,2]
[420606122,1776316246311,-500.0,9.717e-05,2]
[420606123,1776316246321,-500.0,9.717e-05,2]
[420606124,1776316246330,-500.0,9.717e-05,2]
[420606125,1776316246339,-500.0,9.717e-05,2]
[420606126,1776316246348,-500.0,9.717e-05,2]
[420606127,1776316246358,-487.34545339,9.717e-05,2]
[420606128,1776316246389,-12.65454661,9.717e-05,2]
[420606129,1776316246399,-500.0,9.717e-05,2]
[420606130,1776316246408,-500.0,9.717e-05,2]
[420606131,1776316246418,-500.0,9.717e-05,2]
[420606132,1776316246427,-500.0,9.717e-05,2]
[420606133,1776316246437,-151.16334755,9.717e-05,2]
[420606134,1776316246447,-279.9045709,9.717e-05,2]
[420606135,1776316246458,-178.60794561,9.722e-05,2]
[420606136,1776316246468,-205.0,9.8e-05,2]
[420606137,1776316246477,-500.0,9.855e-05,2]
[420606138,1776316246487,-800.0,9.9e-05,3]
[420606139,1776316246496,-500.0,9.946e-05,2]
[420606140,1776316246506,-500.0,9.946e-05,2]
[420606141,1776316246515,-500.0,9.946e-05,2]
[420606143,1776316246524,-500.0,9.946e-05,2]
[420606144,1776316246533,-500.0,9.946e-05,2]
[420606145,1776316246542,-500.0,9.946e-05,2]
[420606146,1776316246551,-349.69074583,9.946e-05,2]
[420606147,1776316246560,-150.0,9.946e-05,2]
[420606148,1776316246570,-219.0,9.946e-05,2]
[420606149,1776316246579,-150.0,9.946e-05,2]
[420606150,1776316246588,-186.43263442,9.946e-05,2]
[420606151,1776316246598,-150.0,9.946e-05,2]
[420606152,1776316246607,-180.44034162,9.946e-05,2]
[420606153,1776316246616,-150.0,9.946e-05,2]
[420606154,1776316246626,-2389.0,0.0001,2]
[420606155,1776316246635,-288.27259348,0.0001,2]
[420606156,1776316246644,-553.86813045,0.0001,2]
[420606157,1776316246654,-191.3162,0.0001,2]
[420606158,1776316246663,-1600.0,0.0001,3]
[420606159,1776316246672,-151.0,0.0001,2]
[420606160,1776316246682,-151.0,0.0001,2]
[420606161,1776316246691,-151.0,0.0001,2]
[420606162,1776316246701,-151.0,0.0001,2]
[420606163,1776316246710,-151.0,0.0001,2]
[420606164,1776316246719,-151.0,0.0001,2]
[420606165,1776316246729,-151.0,0.0001,2]
[420606166,1776316246738,-151.0,0.0001,2]
[420606167,1776316246748,-151.0,0.0001,2]
[420606168,1776316246757,-151.0,0.0001,2]
[420606169,1776316246766,-151.0,0.0001,2]
[420606171,1776316246776,-212.44769369,0.00010129,2]
[420606172,1776316246785,-1000.0,0.00010129,2]
[420606173,1776316246794,-162.380719,0.00010131,2]
[420606174,1776316246803,-165.45,0.00010139,2]
[420606175,1776316246813,-500.0,0.00010173,2]
[420606176,1776316246823,-503.63062943,0.00010173,2]
[420606177,1776316246832,-500.0,0.00010173,2]
[420606178,1776316246842,-154.0,0.000102,5]
[420606179,1776316246851,-20320.28732621,0.000102,2]
[420606180,1776316247128,-443.4506406,0.000102,2]
[420606181,1776316247139,-658.88696035,0.000102,2]
[420606182,1776316247151,-4592.69195026,0.000102,2]
[420606183,1776316247163,-20279.50605604,0.000102,2]
[420606184,1776316247224,-6445.23435514,0.000102,2]
[420606187,1776316556607,428.34,0.000165,30]
[420606189,1776316897683,150.0,0.00015363,30]
[420606190,1776316897755,150.0,0.00016301,30]
[420606192,1776317328989,630.0,0.000165,30]
[420606193,1776317367393,189.96599896,0.00010028,30]
[420606194,1776317431746,-19138.1636519,9.046e-05,2]
[420606195,1776317431757,-77178.58868287,9.046e-05,2]
[420606210,1776317440416,-301.717,9.046e-05,2]
[420606234,1776317446140,-4273.7982418,9.046e-05,2]
[420606235,1776317446182,-5648.96242343,9.046e-05,2]
[420606236,1776317446191,-256.45409861,9.071e-05,14]
[420606237,1776317446201,-5000.0,9.134e-05,2]
[420606238,1776317446210,-1419.65018245,9.151e-05,2]
[420606239,1776317446220,-300.0,9.161e-05,2]
[420606240,1776317446230,-650.0,9.161e-05,2]
[420606242,1776317446239,-10304.67,9.162e-05,2]
[420606244,1776317446248,-200.0,9.232e-05,2]
[420606246,1776317446256,-500.0,9.304e-05,2]
[420606248,1776317446266,-1350.25,9.414e-05,2]
[420606250,1776317446275,-150.0,9.47e-05,2]
[420606252,1776317446285,-578.20924308,9.57e-05,2]
[420606254,1776317446294,-224.66947419,9.583e-05,2]
[420606260,1776317446344,-901.48894565,9.583e-05,2]
[420606287,1776318004843,169.19,7.17e-05,2]
[420606289,1776318139701,2060.12868882,8.46e-05,2]
[420606290,1776318139742,188.46761204,8.46e-05,2]
[420606292,1776318161065,-152.0,9.379e-05,7]
[420606293,1776318161094,-152.0,9.977e-05,7]
[420606294,1776318182379,-1600.0,8.968e-05,2]
[420606295,1776318182406,-1200.0,9.072e-05,2]
[420606296,1776318182430,-2700.0,9.073e-05,2]
[420606297,1776318321279,1116.0,8.304e-05,2]
[420606298,1776318323643,-1116.0,8.473e-05,2]
[420606334,1776318635041,-363.22867442,8.746e-05,2]
[420606335,1776318635053,-1544.72132558,8.746e-05,2]
[420606336,1776318635063,-2000.0,8.759e-05,2]
[420606337,1776318635072,-500.0,8.783e-05,2]
[420606338,1776318635082,-1200.0,8.917e-05,2]
[420606339,1776318635092,-300.0,8.918e-05,2]
[420606340,1776318635101,-4978.87,8.918e-05,2]
[420606341,1776318635111,-1116.0,8.919e-05,2]
[420606342,1776318635122,-500.0,8.953e-05,2]
[420606343,1776318635131,-94665.2880703,8.973e-05,2]
[420606344,1776318635143,-75035.3300524,8.973e-05,2]
[420606345,1776318635166,-2908.61379981,8.973e-05,2]
[420606346,1776318635203,-341.32177724,8.973e-05,2]
[420606347,1776318635250,-280.63250004,8.973e-05,2]
[420606348,1776318635261,-361.04264806,8.973e-05,2]
[420606349,1776318635337,-1195.0,8.973e-05,2]
[420606350,1776318635357,-3766.60401429,8.973e-05,2]
[420606357,1776318638162,-359.4103643,8.973e-05,2]
[420606358,1776318638174,-3575.0,8.973e-05,2]
[420606359,1776318638185,-432.33533711,8.973e-05,2]
[420606373,1776318640203,-473.93335833,8.973e-05,2]
[420606374,1776318640413,-10874.03214022,8.973e-05,2]
[420606375,1776318640424,-20309.12630002,8.973e-05,2]
[420606376,1776318640435,-8021.84155976,8.973e-05,2]
[420606415,1776318647811,-230.27122696,8.972e-05,2]
[420606416,1776318647820,-358.8972884,8.972e-05,2]
[420606417,1776318647829,-500.0,8.972e-05,2]
[420606418,1776318647839,-500.0,8.972e-05,2]
[420606419,1776318647849,-500.0,8.972e-05,2]
[420606420,1776318647858,-500.0,8.972e-05,2]
[420606421,1776318647868,-218.48218235,8.972e-05,2]
[420606422,1776318647878,-500.0,8.972e-05,2]
[420606423,1776318647887,-500.0,8.972e-05,2]
[420606424,1776318647896,-97.27803425,8.972e-05,2]
[420606425,1776318647963,-66.88490537,8.972e-05,2]
[420606426,1776318648006,-335.83706038,8.972e-05,2]
[420606427,1776318648015,-500.0,8.972e-05,2]
[420606428,1776318648025,-500.0,8.972e-05,2]
[420606429,1776318648034,-500.0,8.972e-05,2]
[420606430,1776318648044,-500.0,8.972e-05,2]
[420606431,1776318648053,-500.0,8.972e-05,2]
[420606432,1776318648062,-500.0,8.972e-05,2]
[420606433,1776318648071,-500.0,8.972e-05,2]
[420606434,1776318648081,-500.0,8.972e-05,2]
[420606435,1776318648090,-500.0,8.972e-05,2]
[420606436,1776318648100,-500.0,8.972e-05,2]
[420606437,1776318648109,-500.0,8.972e-05,2]
[420606438,1776318648119,-626.37124961,8.972e-05,2]
[420606439,1776318648128,-500.0,8.972e-05,2]
[420606440,1776318648138,-500.0,8.972e-05,2]
[420606441,1776318648147,-500.0,8.972e-05,2]
[420606442,1776318648156,-500.0,8.972e-05,2]
[420606443,1776318648165,-500.0,8.972e-05,2]
[420606444,1776318648175,-500.0,8.972e-05,2]
[420606445,1776318648184,-500.0,8.972e-05,2]
[420606446,1776318648193,-143.24370578,8.972e-05,2]
[420606447,1776318648222,-356.75629422,8.972e-05,2]
[420606448,1776318648231,-316.54370578,8.972e-05,2]
[420606460,1776318963104,-182.0,8.473e-05,2]
[420606461,1776318984043,-1116.0,8.473e-05,2]
[420606462,1776319093266,150.0,0.00018,90]
[420606463,1776319097028,5000.01,8e-05,2]
[420606464,1776319097051,5000.01,8e-05,2]
[420606465,1776319097075,5000.01,8e-05,2]
[420606466,1776319097099,2719.87444468,8e-05,2]
[420606467,1776319101600,4231.01,0.00017982,90]
[420606471,1776319282121,165.45,8.219e-05,2]
[420606475,1776319345972,471.6,0.00017982,90]
[420606479,1776319524970,150.0,8.063e-05,2]
[420606480,1776319525047,150.0,8.362e-05,2]
[420606481,1776319545086,-160.0,8.5e-05,7]
[420606482,1776319561471,300.0,8.509e-05,2]
[420606483,1776319561794,150.0,8.509e-05,2]
[420606484,1776319562650,300.0,8.509e-05,2]
[420606485,1776319597772,500.0,8.509e-05,2]
[420606486,1776319604105,506.60359678,8.509e-05,2]
[420606487,1776319604167,500.0,8.509e-05,2]
[420606488,1776319604221,500.0,8.509e-05,2]
[420606489,1776319604266,500.0,8.509e-05,2]
[420606490,1776319604380,500.0,8.509e-05,2]
[420606491,1776319604446,377.53315181,8.509e-05,2]
[420606492,1776319604485,578.96591813,8.509e-05,2]
[420606493,1776319604851,500.0,8.509e-05,2]
[420606494,1776319604920,500.0,8.509e-05,2]
[420606495,1776319604961,500.0,8.509e-05,2]
[420606496,1776319604999,552.98143179,8.509e-05,2]
[420606497,1776319605032,500.0,8.509e-05,2]
[420606498,1776319605142,500.0,8.509e-05,2]
[420606499,1776319605226,500.0,8.509e-05,2]
[420606500,1776319608238,266.8965379,8.509e-05,2]
[420606501,1776319608267,207.16483834,8.509e-05,2]
[420606502,1776319608300,500.0,8.509e-05,2]
[420606503,1776319608332,439.86452525,8.509e-05,2]
[420606504,1776319608354,60.13547475,8.509e-05,2]
[420606505,1776319608387,172.92276185,8.509e-05,2]
[420606506,1776319608419,219.93902778,8.509e-05,2]
[420606507,1776319610595,208.81,8.006e-05,2]
[420606508,1776319614015,500.0,8.509e-05,2]
[420606509,1776319614087,500.0,8.509e-05,2]
[420606510,1776319614170,500.0,8.509e-05,2]
[420606511,1776319614260,500.0,8.509e-05,2]
[420606512,1776319614316,500.0,8.509e-05,2]
[420606513,1776319614394,500.0,8.509e-05,2]
[420606514,1776319614464,500.0,8.509e-05,2]
[420606515,1776319614538,500.0,8.509e-05,2]
[420606516,1776319614598,500.0,8.509e-05,2]
[420606517,1776319614664,500.0,8.509e-05,2]
[420606518,1776319614735,500.0,8.509e-05,2]
[420606519,1776319614795,500.0,8.509e-05,2]
[420606520,1776319614853,500.0,8.509e-05,2]